Cogmind - Beta 9 @@@ ROGUE MODE // 2019.10.26 @ 21:54:09 Player: Nikolayag Result: Destroyed by H-66 Slayer with Heavy Assault Rifle Performance ------------- Evolutions (5) 2500 Regions Visited (15) 3000 Robots Destroyed (267) 1335 Value Destroyed (9869) 9869 Prototype IDs (19) 380 Alien Tech Used (0) 0 Bonus (5148) 5148 TOTAL SCORE: 22232 Bonus ------- High Alert Combat Kills 1081 Follower Combat Kills 3259 Network Hubs Disabled 400 Met Zhirov 300 Met Warlord at Base 500 MAIN.C Attacked Warlord 500 Warlord Defense Kill 54 Built Enhanced Grunts 300 A7 Reached Mainframe 300 Met R17 at Cetus 500 Read Decrypted Archives 300 Friendly Fire -2346 Cogmind --------- Core Integrity 0/1000 Matter 54/300 Energy 65/100 System Corruption 9% Temperature Cool (18) Location -5/Warlord Parts ------- Power (2) Propulsion (2) Utility (11) 0b10 Decoder Chip [Generic] Weapon (2) Inventory (4) Centrium Heavy Treads Scatter Rocket Array Peak State ------------ Power Light Angular Momentum Engine Quantum Reactor Propulsion Centrium Heavy Treads Utility Large Storage Unit Large Storage Unit Large Storage Unit High-capacity Storage Unit High-capacity Storage Unit Improved Signal Interpreter Improved Heavy Armor Plating Heavy Reactive Plating Advanced Trap Extractor Weapon EMDS Inventory Centrium Heavy Treads Centrium Heavy Treads Improved Cooling System Improved Cooling System Advanced Energy Well Matter Compressor Advanced Targeting Computer Improved Light Armor Plating Layered Light Armor Plating Layered Medium Armor Plating Centrium Medium Armor Plating Centrium Medium Armor Plating Centrium Medium Armor Plating System Shield Heavy Beamcaster Advanced Variable Charge Gun EM Pulse Cannon Improved EM Pulse Cannon Improved EM Pulse Cannon Heavy Plasma Cannon Gauss Rifle Gauss Rifle Flak Gun Flak Gun Heavy Machine Gun Improved KE Penetrator Improved KE Penetrator Slug Cannon Slug Cannon Improved Proton Missile Launcher Scatter Rocket Array Phasing Sabre [Rating: 104] Favorites ----------- Power Enhanced Nuclear Core Engine Light Angular Momentum Engine Power Core Enhanced Nuclear Core Reactor Quantum Reactor Propulsion Heavy Treads Treads Heavy Treads Wheel Compact Wheel Utility Large Storage Unit Device Improved Cooling System Storage Large Storage Unit Processor Advanced Signal Interpreter Hackware System Shield Protection Improved Medium Armor Plating Weapon Gauss Rifle Energy Gun Heavy EM Pulse Gun Energy Cannon Proton Cannon Ballistic Gun Gauss Rifle Ballistic Cannon Slug Cannon Launcher Improved Proton Missile Launcher Special Weapon Improved Plasma Cutter Slashing Weapon Phasing Sabre Build | -11 -10 -9 -8 -7 -7 -7 -6 -6 -6 -6 -6 -5 -5 -5 -5 ------- Run | Scr Mat Mat Mat Fac Was Fac Fac Ext Cet Arc Hub Fac Upp Upp War Slots Evolved 10 | . . 2 2 2 . . 2 . . . . 2 . . . Power 1 | . . . . . . . . . . . . 1 . . . Propulsion . | . . . . . . . . . . . . . . . . Utility 9 | . . 2 2 2 . . 2 . . . . 1 . . . Weapon . | . . . . . . . . . . . . . . . . Parts Attached 323 | 7 9 11 33 53 7 9 8 22 25 2 45 44 16 3 29 Power 30 | 1 1 2 3 3 1 2 . . 3 1 1 7 2 1 2 Engine 13 | 1 1 2 2 1 . . . . . . . 3 1 1 1 Core 9 | . . . 1 2 . 2 . . . . . 3 1 . . Reactor 8 | . . . . . 1 . . . 3 1 1 1 . . 1 Propulsion 42 | 2 1 3 10 15 1 . 1 . 2 . 2 2 1 . 2 Treads 39 | 1 1 2 9 15 1 . 1 . 2 . 2 2 1 . 2 Leg . | . . . . . . . . . . . . . . . . Wheel 3 | 1 . 1 1 . . . . . . . . . . . . Hover . | . . . . . . . . . . . . . . . . Flight . | . . . . . . . . . . . . . . . . Utility 119 | 2 4 3 6 18 1 5 5 11 9 1 16 18 5 1 14 Device 34 | . . . 2 4 . 2 1 4 5 . 5 6 1 . 4 Storage 20 | 2 4 1 1 2 . . 1 2 1 . 1 1 1 . 3 Processor 5 | . . . . 1 . . . . . . 1 1 . . 2 Hackware 5 | . . . . 2 . 1 . . 1 . . 1 . . . Protection 55 | . . 2 3 9 1 2 3 5 2 1 9 9 3 1 5 Artifact . | . . . . . . . . . . . . . . . . Weapon 132 | 2 3 3 14 17 4 2 2 11 11 . 26 17 8 1 11 Energy Gun 22 | . . . 5 7 1 . . 1 2 . 2 . . . 4 Energy Cannon 27 | . . . 2 3 . . . 2 5 . 5 6 4 . . Ballistic Gun 51 | 2 2 3 4 5 1 1 . 5 2 . 12 9 1 1 3 Ballistic Cannon 9 | . 1 . 1 1 1 . 1 1 . . 1 . 1 . 1 Launcher 11 | . . . 2 . . 1 . 1 1 . 3 2 1 . . Special Weapon 3 | . . . . . 1 . . . . . . . 1 . 1 Impact Weapon . | . . . . . . . . . . . . . . . . Slashing Weapon 9 | . . . . 1 . . 1 1 1 . 3 . . . 2 Piercing Weapon . | . . . . . . . . . . . . . . . . Special Melee Weapon . | . . . . . . . . . . . . . . . . Unidentified Prototypes 19 | . . 2 2 1 . . . . 7 . 1 1 . . 5 Parts Lost 107 | . 3 7 11 23 . . 1 2 . 4 13 19 9 2 13 Power 20 | . 1 2 3 2 . . . . . 1 2 5 2 1 1 Propulsion 16 | . . 2 2 5 . . 1 . . . 2 1 1 . 2 Utility 40 | . . 1 2 7 . . . 2 . 1 6 10 3 1 7 Weapon 31 | . 2 2 4 9 . . . . . 2 3 3 3 . 3 Highest Loss Streak 10 | . 2 3 4 6 . . 1 1 . 4 3 4 6 2 10 Average Slot Usage (%) 91 | . 99 98 96 98 99 91 90 91 85 81 85 87 85 87 91 Engine 3 | . 14 10 5 3 . . . . . . . 4 3 4 4 Core 2 | . . . 3 3 6 2 6 6 . . . 2 4 5 4 Reactor 1 | . . . . . . 4 . . 5 5 5 1 . . . Treads 8 | . 14 11 13 14 14 7 5 6 6 6 5 5 5 5 4 Wheel 1 | . 14 11 2 . . . . . . . . . . . . Device 6 | . . . 9 6 . 3 11 10 5 6 10 5 7 11 10 Storage 29 | . 28 32 36 29 30 30 26 27 33 33 33 27 23 23 22 Processor 5 | . . . . 7 7 7 6 6 6 6 3 6 11 11 10 Hackware 3 | . . . . 6 15 11 6 6 3 6 3 1 . . . Protection 9 | . . 10 8 7 7 7 13 13 8 4 6 16 14 11 15 Energy Gun 1 | . . . 5 7 2 4 . . . . . . . . . Energy Cannon 2 | . . . 3 1 . . . . 12 10 4 2 2 5 1 Ballistic Gun 7 | . 23 17 4 4 4 2 6 8 . . 6 6 5 2 7 Ballistic Cannon 1 | . 4 4 3 . 7 5 1 3 . . . . . . . Naked Turns . | . . . . . . . . . . . . . . . . Heaviest Build 213 | 16 57 82 105 120 129 130 132 174 192 181 188 213 166 160 178 Greatest Support 80 | 20 20 20 40 56 70 70 70 70 80 70 80 80 70 70 70 Greatest Overweight (x) 43 | 1 3 5 34 5 2 1 43 2 2 2 2 2 2 2 2 Average Overweight (x) 1 | . 2 4 4 2 1 1 1 1 2 1 1 1 1 2 1 Largest Inventory Capacity 38 | 8 18 24 30 32 32 32 32 38 38 38 38 38 32 32 32 Average Capacity 31 | 6 15 23 30 30 32 32 32 32 38 38 38 36 32 32 31 Most Carried 38 | 4 18 24 30 30 32 32 32 38 38 38 38 36 32 29 32 Average Carried 30 | 3 14 21 27 26 30 31 31 32 37 37 36 32 28 28 30 Final Capacity 32 | . . . . . . . . . . . . 32 . . 4 Final Carried 27 | . . . . . . . . . . . . 27 . . 3 Class Distribution -------------------- 85% | Hauler-Mutant 8% | Mutant 6% | Scavenger-Mutant Dominant Class ---------------- Mutant | -10/Materials Hauler-Mutant | -9/Materials Hauler-Mutant | -8/Materials Hauler-Mutant | -7/Factory Hauler-Mutant | -7/Waste Hauler-Mutant | -7/Factory Hauler-Mutant | -6/Factory Hauler-Mutant | -6/Extension Hauler-Mutant | -6/Cetus Hauler-Mutant | -6/Archives Hauler-Mutant | -6/Hub_04(d) Hauler-Mutant | -5/Factory Hauler-Mutant | -5/Upper Caves Hauler-Mutant | -5/Upper Caves Hauler-Mutant | -5/Warlord Resources | -11 -10 -9 -8 -7 -7 -7 -6 -6 -6 -6 -6 -5 -5 -5 -5 ----------- Run | Scr Mat Mat Mat Fac Was Fac Fac Ext Cet Arc Hub Fac Upp Upp War Matter Collected 6922 | 266 336 357 548 828 142 221 254 596 572 . 824 1314 527 74 63 Remotely . | . . . . . . . . . . . . . . . . Salvage Created 12460 | 82 525 846 1190 1839 28 745 141 654 554 40 2810 2278 621 84 23 Parts 565 | 1 26 52 57 98 2 40 7 34 22 1 118 74 24 6 3 Haulers Intercepted 10 | . 2 3 2 1 . 1 . . . . 1 . . . . Recyclers Shooed 5 | . . . . . . . . 2 . . . 3 . . . Parts Field Recycled . | . . . . . . . . . . . . . . . . Retrieved Matter . | . . . . . . . . . . . . . . . . Parts Self-Destructed 122 | . . . . . . . . . . . . . 18 4 100 Prevented 11 | . . . . . . . . . . . . . 7 1 3 Kills | -11 -10 -9 -8 -7 -7 -7 -6 -6 -6 -6 -6 -5 -5 -5 -5 ------- Run | Scr Mat Mat Mat Fac Was Fac Fac Ext Cet Arc Hub Fac Upp Upp War Combat Hostiles Destroyed 198 | . 10 14 23 30 . 9 4 10 11 . 35 34 14 3 1 Melee 1 | . . . . . . . 1 . . . . . . . . Guns 101 | . 7 11 8 25 . 2 2 5 . . 19 14 6 1 1 Cannons 46 | . 3 3 8 2 . . 1 3 3 . 11 7 3 2 . AOE 31 | . . . 6 1 . 7 . 2 4 . 2 4 5 . . Classes Destroyed 16 | 1 3 3 3 2 . 1 1 1 . . 1 . . . . Worker 17 | . . . 2 4 . 2 . . . . 5 4 . . . Builder 15 | . . 1 2 1 . 3 . 2 . . 5 1 . . . Hauler 10 | . 2 3 2 1 . 1 . . . . 1 . . . . Recycler 12 | 1 1 1 1 1 . 2 . 1 . . 2 2 . . . Operator 4 | . . 1 1 . . . . 1 . . 1 . . . . Watcher 6 | . . . . . . . . 1 . . 5 . . . . Swarmer 47 | . 3 . 7 3 . 3 . . 5 . 7 8 7 3 1 Saboteur 1 | . . . . . . . 1 . . . . . . . . Grunt 88 | . 7 10 10 14 . 5 2 4 4 . 14 15 3 . . Brawler 3 | . . . 1 1 . . . . . . . . 1 . . Duelist 7 | . . . . 3 . 1 1 . 1 . . . 1 . . Sentry 26 | . . 4 4 5 . . . 3 . . 6 2 2 . . Hunter 17 | . . . 1 2 . . . 3 . . 3 7 1 . . Programmer 5 | . . . . 2 . . . . . . 2 1 . . . Behemoth 2 | . . . . . . . . . . . 1 1 . . . Cetus Guard 1 | . . . . . . . . . 1 . . . . . . Lightning 2 | . . . . . . . . . . . 2 . . . . Surgeon 1 | . . . . . . 1 . . . . . . . . . Wasp 1 | . . . . . 1 . . . . . . . . . . Thug 1 | . . . . . . 1 . . . . . . . . . Best Kill Streak 11 | 1 3 7 5 7 . 11 4 6 3 . 6 11 5 3 1 Combat Bots Only 9 | . 3 7 5 6 . 3 4 3 3 . 4 9 5 3 1 Max Kills in Single Turn 6 | 1 1 1 2 3 1 4 2 2 3 . 3 3 6 1 1 Gunslinging 1 | . . . . 1 . . . . . . . . . . . Exploded 5 | . . . 2 1 . 3 . 2 3 . 1 2 5 . . Melee 1 | . . . . . . . 1 . . . . . . . . Uniques/NPCs Destroyed 1 | . . . . . . . . . 1 . . . . . . A7 (-6/Cetus) Combat | -11 -10 -9 -8 -7 -7 -7 -6 -6 -6 -6 -6 -5 -5 -5 -5 -------- Run | Scr Mat Mat Mat Fac Was Fac Fac Ext Cet Arc Hub Fac Upp Upp War Damage Taken 26327 | . 654 918 1631 4262 . 394 507 947 132 1325 4185 5124 2511 257 3480 Core 2630 | . 116 130 183 461 . 55 95 59 4 175 350 228 147 . 627 Absorbed by Shields 717 | . . . . . . . . . 123 . . . . . 594 Reduced by Siege Mode 190 | . . . . . . . 38 4 . . 33 68 47 . . Core Remaining (%) 55 | 100 53 67 66 . . 26 . . . . 19 . . . . Volleys Fired 776 | 6 63 50 71 120 . 31 15 48 47 6 132 110 43 5 29 Largest 2 | 2 2 2 2 2 . 2 2 2 2 1 2 2 2 2 2 Hottest 240 | 40 55 58 95 113 . 129 73 76 240 75 144 132 132 97 240 Shots Fired 1373 | 12 126 94 126 227 1 45 28 83 73 6 249 178 79 12 34 Gun 895 | 12 117 72 57 184 . 16 15 51 1 . 173 121 54 6 16 Cannon 436 | . 9 22 61 43 1 20 13 31 72 6 70 51 23 6 8 Launcher 31 | . . . 8 . . 9 . 1 . . 6 6 1 . . Special 11 | . . . . . . . . . . . . . 1 . 10 Kinetic 897 | 12 126 94 75 102 1 26 28 82 . . 156 121 55 6 13 Thermal 97 | . . . 23 37 . 10 . . 1 . 4 . 1 . 21 Explosive 1 | . . . . . . . . . . . . . 1 . . Electromagnetic 378 | . . . 28 88 . 9 . 1 72 6 89 57 22 6 . Robot Hit Streak 30 | 11 16 22 17 30 . 7 20 12 14 3 24 18 24 25 13 Robot Miss Streak 5 | 1 5 2 1 4 1 5 2 5 5 1 4 3 3 4 2 Penetration Max 1 | . . . . 1 . . 1 1 . . 1 1 1 . . Secondary Targets 6 | . . 1 1 3 . . . . . . . 1 . . . Max Gunslinging Chain 1 | . . 1 1 1 . . . . . . . 1 . . . Shots Hit Robots 995 | 11 76 70 94 179 . 17 25 56 46 4 191 138 66 7 15 Core Hits 552 | 3 26 30 47 97 2 23 8 39 22 . 119 95 30 5 6 Critical Hits 42 | . 2 1 1 2 . 3 3 2 1 1 8 12 3 . 3 Critical Kills 14 | . . 1 . 1 . 1 1 2 . . 4 3 1 . . Critical Parts Destroyed 23 | . 2 . 1 1 . 2 2 . 1 . 4 8 1 . 1 Melee Attacks 77 | . . . . . . . 12 10 4 . 29 . . . 22 Impact . | . . . . . . . . . . . . . . . . Slashing 77 | . . . . . . . 12 10 4 . 29 . . . 22 Piercing . | . . . . . . . . . . . . . . . . Sneak Attacks 1 | . . . . . . . . . . . 1 . . . . Combat Hostiles . | . . . . . . . . . . . . . . . . Follow-up Attacks . | . . . . . . . . . . . . . . . . Damage Inflicted 26729 | 115 779 986 1877 3495 28 1119 631 1626 1955 182 6378 4996 2069 204 289 Guns 12754 | 115 653 751 635 2698 . 201 200 901 . . 3247 2153 1029 83 88 Cannons 8702 | . 118 228 790 650 28 326 346 489 1275 182 1691 1996 404 121 58 Explosions 4451 | . . . 446 147 . 590 . 236 680 . 1094 639 619 . . Melee 301 | . . . . . . . 85 . . . 216 . . . . Ramming 362 | . 8 7 6 . . 2 . . . . 130 208 . . 1 Kinetic 13156 | 115 771 979 858 1634 28 365 546 1390 . . 3030 2153 1058 83 146 Thermal 2593 | . . . 346 727 . 205 . 204 680 . 117 47 125 . 142 Explosive 511 | . . . . . . . . . . . . . 511 . . Electromagnetic 9806 | . . . 667 1134 . 547 . 32 1275 182 2885 2588 375 121 . Impact . | . . . . . . . . . . . . . . . . Slashing 301 | . . . . . . . 85 . . . 216 . . . . Piercing . | . . . . . . . . . . . . . . . . Highest Corruption 13 | . 3 . . 10 10 11 . . . . 6 7 10 10 13 Average Corruption 8 | . 2 . . 9 10 10 . . . . 1 5 9 10 8 Corruption Purged . | . . . . . . . . . . . . . . . . Effects 264 | . 15 . . 47 27 62 . . . . 4 45 40 13 11 Message Errors 51 | . 4 . . 9 7 10 . . . . . 12 5 3 1 Matter Fused 34 | . 3 . . 2 1 9 . . . . . 7 8 3 1 Heat Flow Errors 26 | . 3 . . 1 1 12 . . . . . 3 4 . 2 Energy Discharges 31 | . 1 . . 6 6 4 . . . . 1 5 4 3 1 Parts Rejected 4 | . . . . 1 . . . . . . . 1 2 . . Data Loss (minor) 19 | . 1 . . 4 3 5 . . . . 2 2 2 . . Data Loss (major) 12 | . . . . 1 3 2 . . . . . 3 1 . 2 Misfires 8 | . . . . 2 1 2 . . . . . 1 . 2 . Alerts 10 | . . . . 2 1 5 . . . . . . 2 . . Misdirections 16 | . . . . 2 4 7 . . . . . . 1 1 1 Targeting Errors 48 | . 3 . . 17 . 5 . . . . 1 10 8 1 3 Weapon Failures 5 | . . . . . . 1 . . . . . 1 3 . . Overload Shots 8 | . . . . . . . . . 1 . . . . . 7 Effects 1 | . . . . . . . . . . . . . . . 1 Heat Surge 1 | . . . . . . . . . . . . . . . 1 Overflow Damage 452 | . . . 14 . . . 27 32 21 25 112 190 31 . . Projectiles 257 | . . . 8 . . . 20 30 9 25 27 138 . . . Explosions 77 | . . . 6 . . . . 2 12 . 15 11 31 . . Melee 118 | . . . . . . . 7 . . . 70 41 . . . Knockbacks 33 | . 2 2 10 2 . 2 8 5 . . 1 1 . . . Impact 2 | . . . . . . . . . . . 1 1 . . . Kinetic 22 | . 2 2 6 2 . 1 5 4 . . . . . . . Secondary 9 | . . . 4 . . 1 3 1 . . . . . . . Self-Inflicted Damage 282 | . . . 25 57 . 13 . 14 106 . 67 . . . . Shots 13 | . . . 2 2 . 2 . 1 2 . 4 . . . . Rammed 29 | . 1 1 1 . . 1 . . . . 9 14 . . 2 Targets Rammed 30 | . 1 1 1 . . 1 . . . . 10 14 . . 2 Kicked . | . . . . . . . . . . . . . . . . Crushed 1 | . . . . . . . . . . . 1 . . . . Highest Temperature 661 | . 197 67 . 354 88 432 5 5 156 . 661 457 207 164 396 Average Temperature 90 | . 34 13 . 87 47 104 3 5 29 . 175 102 88 73 109 Received Heat Transfer 5252 | . 282 396 657 1032 . 108 168 231 12 . 666 804 534 . 362 Effects 14 | . . . . 1 . 2 . . . . 9 2 . . . Shutdowns 3 | . . . . . . 1 . . . . 1 1 . . . Energy Bleed 1 | . . . . 1 . . . . . . . . . . . Interference 2 | . . . . . . . . . . . 2 . . . . Matter Decay 1 | . . . . . . . . . . . 1 . . . . Short Circuit 3 | . . . . . . 1 . . . . 1 1 . . . Damage (minor) 1 | . . . . . . . . . . . 1 . . . . Damage (major) 3 | . . . . . . . . . . . 3 . . . . Siege Activations 30 | . . . . . . . 1 1 5 . 9 10 4 . . Total Turns 462 | . . . . . . . 28 8 23 . 199 143 61 . . Longest Duration 64 | . . . . . . . 28 8 7 . 64 26 26 . . Robots Corrupted 27 | . . . 2 2 . . . . 5 1 8 9 . . . Combat Hostiles 18 | . . . 1 2 . . . . 4 . 3 8 . . . Parts Fried 81 | . . . 5 6 . . . . 9 2 37 20 . 2 . Impact Corruptions 5 | . . . . . . . . . . . 1 4 . . . Robots Melted . | . . . . . . . . . . . . . . . . Combat Hostiles . | . . . . . . . . . . . . . . . . Parts Melted 7 | . . . . 2 . 3 . . . . . 1 1 . . Heat Transferred 3393 | . . . 716 1223 . 309 . 150 375 . 211 50 137 . 222 Parts Sabotaged . | . . . . . . . . . . . . . . . . Parts Stolen . | . . . . . . . . . . . . . . . . Parts Stripped . | . . . . . . . . . . . . . . . . Power Chain Reactions 13 | . . . 1 2 . 1 . 1 4 . 1 1 2 . . Missiles Intercepted . | . . . . . . . . . . . . . . . . Alert | -11 -10 -9 -8 -7 -7 -7 -6 -6 -6 -6 -6 -5 -5 -5 -5 ------- Run | Scr Mat Mat Mat Fac Was Fac Fac Ext Cet Arc Hub Fac Upp Upp War Peak Influence 1654 | 5 149 259 375 337 133 1654 780 535 1419 960 864 523 . . . Average Influence 389 | 1 39 127 262 156 69 799 608 394 835 735 439 349 . . . Maximum Alert Level 5 | . . 1 1 1 . 5 3 2 4 3 3 2 . . . Low Security (%) 31 | . . . . . . . . . . . . . . . . Level 1 30 | . . . . . . . . . . . . . . . . Level 2 25 | . . . . . . . . . . . . . . . . Level 3 6 | . . . . . . . . . . . . . . . . Level 4 6 | . . . . . . . . . . . . . . . . Level 5 . | . . . . . . . . . . . . . . . . High Security . | . . . . . . . . . . . . . . . . Max Security . | . . . . . . . . . . . . . . . . Squads Dispatched 47 | . 1 4 3 8 . 9 2 4 . . 8 8 . . . Investigation 11 | . 1 2 . 1 . 1 1 2 . . . 3 . . . Extermination 12 | . . . . 4 . 2 . . . . 3 3 . . . Reinforcement 19 | . . 2 3 3 . 3 . 2 . . 4 2 . . . Assault 4 | . . . . . . 2 1 . . . 1 . . . . Garrison 1 | . . . . . . 1 . . . . . . . . . Intercept . | . . . . . . . . . . . . . . . . Construction Impeded 10 | . . 1 1 1 . 3 . . . . 2 2 . . . Haulers Reinforced 1 | . . . . 1 . . . . . . . . . . . Stealth | -11 -10 -9 -8 -7 -7 -7 -6 -6 -6 -6 -6 -5 -5 -5 -5 --------- Run | Scr Mat Mat Mat Fac Was Fac Fac Ext Cet Arc Hub Fac Upp Upp War Distress Signals 26 | . 1 2 2 4 . 3 . 1 2 . 7 3 . . 1 Communications Jammed . | . . . . . . . . . . . . . . . . Distress Signals . | . . . . . . . . . . . . . . . . Times Spotted 438 | . 24 20 38 46 1 48 7 27 42 8 70 59 17 4 27 Peak Tracking Total 24 | . 4 5 6 6 1 5 5 4 6 15 18 7 7 4 24 Tactical Retreats 41 | . 3 3 7 7 . . 1 1 1 1 12 5 . . . Traps | -11 -10 -9 -8 -7 -7 -7 -6 -6 -6 -6 -6 -5 -5 -5 -5 ------- Run | Scr Mat Mat Mat Fac Was Fac Fac Ext Cet Arc Hub Fac Upp Upp War Traps Triggered 31 | . 4 2 2 5 . 2 . 10 . . 2 4 . . . Indirectly . | . . . . . . . . . . . . . . . . Trap Hack Attempts . | . . . . . . . . . . . . . . . . Triggered . | . . . . . . . . . . . . . . . . Disarmed 4 | . 4 . . . . . . . . . . . . . . Reprogrammed . | . . . . . . . . . . . . . . . . Reused . | . . . . . . . . . . . . . . . . Traps Extracted . | . . . . . . . . . . . . . . . . Installed . | . . . . . . . . . . . . . . . . Triggered 21 | . . . . . . . . . . . . . . . 21 Machines | -11 -10 -9 -8 -7 -7 -7 -6 -6 -6 -6 -6 -5 -5 -5 -5 ---------- Run | Scr Mat Mat Mat Fac Was Fac Fac Ext Cet Arc Hub Fac Upp Upp War Machines Disabled 49 | . . . . 1 . 14 . 2 6 1 17 5 1 . 2 Max in Single Turn 6 | . . . . 1 . . . 1 1 . 6 2 1 . 1 Garrison Access 3 | . . . . . . 2 . . . . 1 . . . . Network Hub 2 | . . . . . . . . . . . 2 . . . . Machines Sabotaged . | . . . . . . . . . . . . . . . . Garrisons Compromised . | . . . . . . . . . . . . . . . . Overloaded Fab Kills . | . . . . . . . . . . . . . . . . Fab Network Shutdowns . | . . . . . . . . . . . . . . . . Hacking | -11 -10 -9 -8 -7 -7 -7 -6 -6 -6 -6 -6 -5 -5 -5 -5 --------- Run | Scr Mat Mat Mat Fac Was Fac Fac Ext Cet Arc Hub Fac Upp Upp War Machines Accessed 42 | . 3 . . 2 . 5 4 10 3 1 8 4 . . 2 Terminals 34 | . 3 . . 1 . 3 3 10 3 . 7 4 . . . Fabricators . | . . . . . . . . . . . . . . . . Repair Stations 2 | . . . . 1 . . 1 . . . . . . . . Recycling Units . | . . . . . . . . . . . . . . . . Scanalyzers . | . . . . . . . . . . . . . . . . Garrison Access 3 | . . . . . . 2 . . . . 1 . . . . Total Hacks 178 | . 9 . . 5 . 9 15 38 17 25 27 30 . . 3 Successful 89 | . 5 . . 5 . 5 8 12 7 25 10 9 . . 3 Failed 89 | . 4 . . . . 4 7 26 10 . 17 21 . . . Catastrophic 22 | . . . . . . 1 1 4 4 . 5 7 . . . Database Lockouts . | . . . . . . . . . . . . . . . . Manual 69 | . 7 . . 3 . 4 11 19 5 . 12 8 . . . Terminals 142 | . 9 . . 3 . 7 13 38 17 . 25 30 . . . Fabricators . | . . . . . . . . . . . . . . . . Repair Stations 4 | . . . . 2 . . 2 . . . . . . . . Recycling Units . | . . . . . . . . . . . . . . . . Scanalyzers . | . . . . . . . . . . . . . . . . Garrison Access 4 | . . . . . . 2 . . . . 2 . . . . Terminal Hacks 67 | . 2 . . 1 . 3 4 9 7 25 6 7 . . 3 Record 34 | . . . . . . . . . 7 25 . . . . 2 Robot Analysis 1 | . . . . . . . . 1 . . . . . . . Open Door 7 | . . . . . . . 1 5 . . . . . . 1 Level Access Points 1 | . . . . . . 1 . . . . . . . . . Branch Access Points 3 | . . . . . . 1 1 . . . . 1 . . . Emergency Access Points 1 | . . . . . . . . . . . 1 . . . . Terminal Index 4 | . . . . . . . 1 1 . . 1 1 . . . Repair Station Index 1 | . . . . . . . . . . . . 1 . . . Alert Level 1 | . . . . . . . . . . . . 1 . . . Unreport Threat 5 | . . . . . . . 1 . . . 2 2 . . . Disarm Traps 1 | . 1 . . . . . . . . . . . . . . Recall Extermination 2 | . . . . 1 . . . . . . . 1 . . . Recall Assault 1 | . . . . . . . . . . . 1 . . . . Zone Layout 5 | . 1 . . . . 1 . 2 . . 1 . . . . Fabricator Hacks . | . . . . . . . . . . . . . . . . Repair Station Hacks 4 | . . . . 2 . . 2 . . . . . . . . Scan Component 2 | . . . . 1 . . 1 . . . . . . . . Repair 2 | . . . . 1 . . 1 . . . . . . . . Recycling Unit Hacks . | . . . . . . . . . . . . . . . . Scanalyzer . | . . . . . . . . . . . . . . . . Garrison Access Hacks 3 | . . . . . . 2 . . . . 1 . . . . Seal Access 3 | . . . . . . 2 . . . . 1 . . . . Unauthorized Hacks 42 | . 7 . . 4 . 3 5 11 . . 7 5 . . . Terminals 15 | . 3 . . 2 . . 2 3 . . 3 2 . . . Track 3 | . 1 . . 1 . . . . . . 1 . . . . Botnet 12 | . 2 . . 1 . . 2 3 . . 2 2 . . . Fabricators . | . . . . . . . . . . . . . . . . Repair Stations . | . . . . . . . . . . . . . . . . Recycling Units . | . . . . . . . . . . . . . . . . Scanalyzers . | . . . . . . . . . . . . . . . . Garrison Access . | . . . . . . . . . . . . . . . . Data Cores Recovered 1 | . . . . . . 1 . . . . . . . . . Used 1 | . . . . . . 1 . . . . . . . . . Hacking Detections 33 | . 3 . . 2 . 3 3 9 2 . 7 4 . . . Full Trace Events 4 | . . . . . . 1 1 2 . . . . . . . Feedback Events 1 | . . . . . . 1 . . . . . . . . . Corruption 1 | . . . . . . 1 . . . . . . . . . Feedback Blocked . | . . . . . . . . . . . . . . . . Robot Schematics Acquired . | . . . . . . . . . . . . . . . . Robots Built . | . . . . . . . . . . . . . . . . Matter . | . . . . . . . . . . . . . . . . Time . | . . . . . . . . . . . . . . . . Total Robot Build Rating . | . . . . . . . . . . . . . . . . Part Schematics Acquired . | . . . . . . . . . . . . . . . . Parts Built . | . . . . . . . . . . . . . . . . Matter . | . . . . . . . . . . . . . . . . Time . | . . . . . . . . . . . . . . . . Total Part Build Rating . | . . . . . . . . . . . . . . . . Parts Repaired 2 | . . . . 1 . . 1 . . . . . . . . Time 45 | . . . . 13 . . 32 . . . . . . . . Parts Recycled . | . . . . . . . . . . . . . . . . Recycled Matter . | . . . . . . . . . . . . . . . . Retrieved Matter . | . . . . . . . . . . . . . . . . Retrieved Components . | . . . . . . . . . . . . . . . . Parts Scanalyzed . | . . . . . . . . . . . . . . . . Part Schematics Acquired . | . . . . . . . . . . . . . . . . Parts Damaged . | . . . . . . . . . . . . . . . . Bothacking | -11 -10 -9 -8 -7 -7 -7 -6 -6 -6 -6 -6 -5 -5 -5 -5 ------------ Run | Scr Mat Mat Mat Fac Was Fac Fac Ext Cet Arc Hub Fac Upp Upp War Used RIF Installer . | . . . . . . . . . . . . . . . . Robots Hacked . | . . . . . . . . . . . . . . . . Non-combat . | . . . . . . . . . . . . . . . . Combat . | . . . . . . . . . . . . . . . . Robot Hacks Applied . | . . . . . . . . . . . . . . . . Relay Couplers Released . | . . . . . . . . . . . . . . . . Robots Rewired 12 | . . . . . . . . 10 . . . . 2 . . Allies Hacked 1 | . . . . . . 1 . . . . . . . . . Hacks Repelled . | . . . . . . . . . . . . . . . . Allies | -11 -10 -9 -8 -7 -7 -7 -6 -6 -6 -6 -6 -5 -5 -5 -5 -------- Run | Scr Mat Mat Mat Fac Was Fac Fac Ext Cet Arc Hub Fac Upp Upp War Total Allies 46 | . . . . . 20 . . 16 5 3 . . 2 . . Largest Group 20 | . . . . . 20 18 . 6 9 7 . . 2 1 1 Highest-Rated Group 727 | . . . . . 515 487 . 286 716 727 . . 78 47 47 Highest-Rated Ally 156 | . . . . . 35 35 . 156 156 122 . . 49 47 47 Total Orders 9 | . . . . . . . . . 7 . . . 2 . . STAY 1 | . . . . . . . . . 1 . . . . . . GOTO 4 | . . . . . . . . . 3 . . . 1 . . FOLLOW 4 | . . . . . . . . . 3 . . . 1 . . Ally Attacks 531 | . . . . . 13 210 . 87 164 37 . . 18 2 . Total Damage 15128 | . . . . . 443 6846 . 1617 4187 1343 . . 626 66 . Kills 112 | . . . . . 2 53 . 15 30 10 . . 1 1 . Allies Corrupted 1 | . . . . . . . . . 1 . . . . . . Allies Melted 1 | . . . . . . . . 1 . . . . . . . Intel | -11 -10 -9 -8 -7 -7 -7 -6 -6 -6 -6 -6 -5 -5 -5 -5 ------- Run | Scr Mat Mat Mat Fac Was Fac Fac Ext Cet Arc Hub Fac Upp Upp War Robot Analysis Total 1 | . . . . . . . . 1 . . . . . . . Derelict Logs Recovered 2 | . . . . . . . . . . . . . 2 . . Drone Launches . | . . . . . . . . . . . . . . . . Drone Recoveries . | . . . . . . . . . . . . . . . . Exploration | -11 -10 -9 -8 -7 -7 -7 -6 -6 -6 -6 -6 -5 -5 -5 -5 ------------- Run | Scr Mat Mat Mat Fac Was Fac Fac Ext Cet Arc Hub Fac Upp Upp War Turns Passed 16712 | 114 1206 713 1016 1497 710 1300 720 1270 1257 115 2563 1571 1017 325 1318 Spaces Moved 6761 | 53 729 229 323 483 336 644 304 518 508 51 901 567 409 147 559 Core 5 | 2 . . 1 . . . 1 . . . . . . . 1 Treads 6012 | 46 137 157 247 483 336 644 303 518 508 51 901 567 409 147 558 Legs . | . . . . . . . . . . . . . . . . Wheels 744 | 5 592 72 75 . . . . . . . . . . . . Hover . | . . . . . . . . . . . . . . . . Flight . | . . . . . . . . . . . . . . . . Fastest Speed 50 | 50 120 130 160 200 180 180 180 180 200 180 180 180 180 200 50 Average Speed 188 | 151 133 209 204 201 199 180 186 183 200 196 199 191 199 200 199 Slowest Speed 2200 | 160 180 240 1750 260 200 180 2200 200 200 200 200 200 200 200 200 Overloaded Moves . | . . . . . . . . . . . . . . . . Propulsion Burnouts . | . . . . . . . . . . . . . . . . Robots Hopped . | . . . . . . . . . . . . . . . . Cave-ins Triggered 2 | . . . . . . . . . . . . . . . 2 Exploration Rate (%) 48 | 5 92 21 24 15 95 29 6 66 90 72 80 19 55 30 75 Regions Visited 15 Branch Regions 7 Pre-discovered Areas . | . . . . . . . . . . . . . . . . Known Exits Taken 9 | . . . . . . 1 1 1 1 1 1 1 1 1 . Unknown Exits Taken 4 | 1 1 1 1 . . . . . . . . . . . . Scrap Searched 1 | . . . . . . . . . . . . . 1 . . Spaces Dug 120 | . . . . . . 1 9 10 . . 26 . 51 . 23 Terrain Destroyed 534 | . . . 2 14 . 3 9 36 31 . 336 20 59 . 24 Melee 63 | . . . . . . . 9 10 . . 26 . . . 18 Projectile 43 | . . . . 2 . 2 . 12 . . 7 14 . . 6 AOE 428 | . . . 2 12 . 1 . 14 31 . 303 6 59 . . Actions | -11 -10 -9 -8 -7 -7 -7 -6 -6 -6 -6 -6 -5 -5 -5 -5 --------- Run | Scr Mat Mat Mat Fac Was Fac Fac Ext Cet Arc Hub Fac Upp Upp War Total 9246 | 73 861 374 552 780 389 740 410 746 671 60 1352 866 522 168 682 Wait 810 | 4 29 58 83 90 9 44 62 34 50 . 197 97 27 13 13 Move 6746 | 52 728 228 322 483 335 643 303 517 507 50 900 567 408 146 557 Hop . | . . . . . . . . . . . . . . . . Pick Up 196 | 4 20 18 22 23 14 6 6 14 11 . 24 20 4 1 9 Fast Attach 75 | 7 3 1 11 5 5 3 1 5 11 . 3 6 6 . 8 Attach 122 | . 1 8 12 29 . 3 3 2 1 2 17 28 7 2 7 Detach 37 | . . . 4 3 1 2 . 3 5 . 3 8 2 . 6 Swap 127 | . 5 3 10 19 2 3 4 15 13 . 25 10 3 1 14 Drop 139 | . 11 7 16 8 23 4 4 16 22 . 8 7 . . 13 Fire 776 | 6 63 50 71 120 . 31 15 48 47 6 132 110 43 5 29 Melee 77 | . . . . . . . 12 10 4 . 29 . . . 22 Ram . | . . . . . . . . . . . . . . . . Kick . | . . . . . . . . . . . . . . . . Crush 29 | . 1 1 1 . . 1 . . . . 10 13 . . 2 Escape Stasis 26 | . . . . . . . . 20 . . 4 . . . 2 Rewire 86 | . . . . . . . . 62 . 2 . . 22 . . Trap . | . . . . . . . . . . . . . . . . Miscellaneous . | . . . . . . . . . . . . . . . . Route ------- -11/Scrapyard -10/Materials (discovered 4 exits: [*Mat x3] / [*Min]) -9/Materials -8/Materials -7/Factory -7/Waste -7/Factory (discovered 6 exits: *Fac x4 / Low x2) -6/Factory (discovered 4 exits: *Low x2 / *Ext x2) -6/Extension (discovered 2 exits: *Fac / *Cet) -6/Cetus (discovered 3 exits: *Fac x2 / *Arc) -6/Archives (discovered 2 exits: *Hub x2) -6/Hub_04(d) (discovered 3 exits: *Fac x3) -5/Factory (discovered 2 exits: *Upp x2) -5/Upper Caves -5/Upper Caves -5/Warlord History --------- Turn | Location | Event 8 | -11/Scrapyard | Discovered new exit (range 16) 115 | -11/Scrapyard | Entered Materials 250 | -10/Materials | Discovered new exit (range 12) 303 | -10/Materials | Build established: Mutant 322 | -10/Materials | Discovered new exit (range 6) 708 | -10/Materials | Discovered new exit (range 15) 1306 | -10/Materials | Discovered new exit (range 8) 1321 | -10/Materials | Entered another Materials area 1321 | -9/Materials | Evolved 2 slots: Utility x2 1537 | -9/Materials | Lost 3 parts (1p1n1u) 1544 | -9/Materials | Destroyed 7 combat bots 1663 | -9/Materials | Build established: Hauler-Mutant 1965 | -9/Materials | Discovered new exit (range 14) 2034 | -9/Materials | Entered another Materials area 2034 | -8/Materials | Evolved 2 slots: Utility x2 2752 | -8/Materials | Lost 4 parts (1p1u2w) 2983 | -8/Materials | Discovered new exit (range 12) 3050 | -8/Materials | Entered Factory 3050 | -7/Factory | Evolved 2 slots: Utility x2 3606 | -7/Factory | Lost 5 parts (1p2u2w) 3809 | -7/Factory | Lost 3 parts (1p2u) 3894 | -7/Factory | Repaired Hcp. Storage Unit 3930 | -7/Factory | System corruption reached 10% 4226 | -7/Factory | Core integrity fell below 50% 4268 | -7/Factory | Lost 6 parts (3n1u2w) 4509 | -7/Factory | Discovered new exit (range 5) 4515 | -7/Factory | Identified exit to Factory 4547 | -7/Factory | Sucked down chute 4547 | -7/Factory | Entered Waste 4548 | -7/Waste | Joined by Warlord forces that had cleared the area 4790 | -7/Waste | A Compactor rumbled back to life 4790 | -7/Waste | Spotted C-40 Crusher 4791 | -7/Waste | Allies destroyed C-40 Crusher 5200 | -7/Waste | Discovered new exit (range 13) 5212 | -7/Waste | Found Damper Plating 5248 | -7/Waste | Identified exit to Factory 5257 | -7/Waste | Entered Factory 5257 | -7/Factory | Accompanied by 18 allies 5601 | -7/Factory | P-60 Hacker assimilated allied 34-163(d) 5786 | -7/Factory | Identified exit to Lower Caves 6097 | -7/Factory | First assault squad dispatched 6557 | -7/Factory | Entered another Factory area 6557 | -6/Factory | Evolved 2 slots: Utility x2 6605 | -6/Factory | Identified exit to Lower Caves 6605 | -6/Factory | Identified exit to Extension 6907 | -6/Factory | First assault squad dispatched 7225 | -6/Factory | Repaired Hrd. Light Armor Plating 7277 | -6/Factory | Entered Extension 7651 | -6/Extension | Rescued a captive Derelict 7800 | -6/Extension | Rescued a captive Derelict 7935 | -6/Extension | Spotted B-75 Beast 8032 | -6/Extension | Rescued a captive Derelict 8045 | -6/Extension | Rescued a captive Derelict 8282 | -6/Extension | Rescued a captive Derelict 8326 | -6/Extension | Rescued A7 8361 | -6/Extension | Found Hvy. Reactive Plating 8365 | -6/Extension | Found Hvy. Reactive Plating 8368 | -6/Extension | Found Hvy. Reactive Plating 8527 | -6/Extension | Discovered new exit (range 10) 8529 | -6/Extension | Discovered new exit (range 6) 8539 | -6/Extension | Identified exit to Cetus 8547 | -6/Extension | Entered Cetus 8547 | -6/Cetus | Accompanied by 5 allies 8552 | -6/Cetus | Acquired a Cetus Manufacturing Module code from A7 8572 | -6/Cetus | Spotted Cetus Guard 8572 | -6/Cetus | Spotted Cetus Guard 8575 | -6/Cetus | Spotted Cetus Guard 8577 | -6/Cetus | Spotted Cetus Guard 8582 | -6/Cetus | Allies destroyed Cetus Guard 8585 | -6/Cetus | Allies destroyed Cetus Guard 8588 | -6/Cetus | Allies destroyed Cetus Guard 8591 | -6/Cetus | Destroyed Cetus Guard 8704 | -6/Cetus | Discovered new exit (range 15) 8877 | -6/Cetus | Started Cetus Manufacturing Module 8896 | -6/Cetus | Escorted A7 to Cetus Mainframe 8902 | -6/Cetus | Manufactured an Enhanced Grunt 8927 | -6/Cetus | Manufactured an Enhanced Grunt 8952 | -6/Cetus | Manufactured an Enhanced Grunt 8977 | -6/Cetus | Manufactured an Enhanced Grunt 9002 | -6/Cetus | Manufactured an Enhanced Grunt 9146 | -6/Cetus | Found a strange terminal 9199 | -6/Cetus | Discovered new exit (range 15) 9238 | -6/Cetus | Spotted Cetus Guard 9238 | -6/Cetus | Spotted Cetus Guard 9242 | -6/Cetus | Spotted Cetus Guard 9242 | -6/Cetus | Spotted Cetus Guard 9245 | -6/Cetus | Allies destroyed Cetus Guard 9249 | -6/Cetus | Allies destroyed Cetus Guard 9251 | -6/Cetus | Allies destroyed Cetus Guard 9256 | -6/Cetus | Allies destroyed Cetus Guard 9266 | -6/Cetus | Discovered new exit (range 15) 9278 | -6/Cetus | Met Revision 17 9663 | -6/Cetus | Destroyed A7 9704 | -6/Cetus | Extracted ID and sensor layout for unrecognized location from A7's data core 9781 | -6/Cetus | Identified exit to Archives 9804 | -6/Cetus | Entered Archives 9804 | -6/Archives | Accompanied by 4 allies 9828 | -6/Archives | Met Zhirov 9834 | -6/Archives | Reinforcements dispatched to Archives 9848 | -6/Archives | Unable to access archive contents 9852 | -6/Archives | Discovered new exit (range 15) 9872 | -6/Archives | Read partially decrypted archive contents 9876 | -6/Archives | Discovered new exit (range 16) 9879 | -6/Archives | Reinforcements dispatched to Archives 9899 | -6/Archives | Zhirov detonated Archives 9916 | -6/Archives | Identified exit to Hub_04(d) 9919 | -6/Archives | Entered Hub_04(d) 9930 | -6/Hub_04(d) | Lost 4 parts (1p1u2w) 10173 | -6/Hub_04(d) | Discovered new exit (range 6) 10194 | -6/Hub_04(d) | Found Prototype Launcher 10195 | -6/Hub_04(d) | Identified Scatter Rocket Array 10489 | -6/Hub_04(d) | Discovered new exit (range 8) 10636 | -6/Hub_04(d) | Discovered new exit (range 3) 10668 | -6/Hub_04(d) | Core integrity fell below 50% 10787 | -6/Hub_04(d) | Spotted B-75 Beast 10969 | -6/Hub_04(d) | First assault squad dispatched 11979 | -6/Hub_04(d) | Destroyed B-75 Beast 12003 | -6/Hub_04(d) | Lost 3 parts (1n2u) 12246 | -6/Hub_04(d) | Network Hub disabled 12250 | -6/Hub_04(d) | Network Hub disabled 12275 | -6/Hub_04(d) | Spotted Lightning 12293 | -6/Hub_04(d) | Destroyed Lightning 12293 | -6/Hub_04(d) | Spotted Lightning 12329 | -6/Hub_04(d) | Destroyed Lightning 12337 | -6/Hub_04(d) | Spotted Lightning 12343 | -6/Hub_04(d) | Spotted Lightning 12343 | -6/Hub_04(d) | Spotted Lightning 12343 | -6/Hub_04(d) | Spotted Lightning 12343 | -6/Hub_04(d) | Spotted Lightning 12343 | -6/Hub_04(d) | Spotted Lightning 12402 | -6/Hub_04(d) | Found Prototype Energy Cannon 12414 | -6/Hub_04(d) | Core integrity fell below 20% 12480 | -6/Hub_04(d) | Identified exit to Factory 12482 | -6/Hub_04(d) | Entered Factory 12482 | -5/Factory | Evolved 2 slots: Power x1, Utility x1 12486 | -5/Factory | Identified EMDS 12684 | -5/Factory | Spotted B-75 Beast 12700 | -5/Factory | Destroyed B-75 Beast 12857 | -5/Factory | Found Imp. Powered Armor 13392 | -5/Factory | Identified exit to Upper Caves 13741 | -5/Factory | Lost 4 parts (1p1n2u) 13777 | -5/Factory | Destroyed 9 combat bots 13796 | -5/Factory | Lost 3 parts (1p1u1w) 14053 | -5/Factory | Entered Upper Caves 14058 | -5/Upper Caves | Learned location of 1 exit from Factory 14216 | -5/Upper Caves | Identified exit to Upper Caves 14237 | -5/Upper Caves | Attracted the attention of an 0b10 outpost 14265 | -5/Upper Caves | System corruption reached 10% 14323 | -5/Upper Caves | Lost 6 parts (2p1n2u1w) 14616 | -5/Upper Caves | Spotted B-75 Beast 14644 | -5/Upper Caves | Allies destroyed B-75 Beast 14687 | -5/Upper Caves | Attracted the attention of an 0b10 checkpoint 15070 | -5/Upper Caves | Entered another Upper Caves area 15070 | -5/Upper Caves | Accompanied by 1 ally 15344 | -5/Upper Caves | Discovered new exit (range 9) 15360 | -5/Upper Caves | Identified exit to Warlord 15395 | -5/Upper Caves | Entered Warlord 15395 | -5/Warlord | Accompanied by 1 ally 15465 | -5/Warlord | System corruption cleaned by Quarantine Array 15623 | -5/Warlord | Build established: Scavenger-Mutant 15672 | -5/Warlord | Visited the Vortex Lab 15682 | -5/Warlord | Warlord's base attacked by MAIN.C 15698 | -5/Warlord | Found Prototype Energy Gun 15698 | -5/Warlord | Identified Vortex Rifle 15701 | -5/Warlord | Found Vortex Rifle 15988 | -5/Warlord | Met Warlord 16018 | -5/Warlord | Found Prototype Device 16018 | -5/Warlord | Identified Exp. Focal Shield 16032 | -5/Warlord | Warlord forces counterattacked 16061 | -5/Warlord | Found Prototype Reactor 16081 | -5/Warlord | Build established: Hauler-Mutant 16365 | -5/Warlord | Attacked by Warlord forces 16553 | -5/Warlord | Crushed by falling debris 16610 | -5/Warlord | Crushed by falling debris 16611 | -5/Warlord | Core integrity fell below 50% 16691 | -5/Warlord | Identified Vortex Chain Reactor 16712 | -5/Warlord | Core integrity fell below 20% 16712 | -5/Warlord | Released all parts (6) 16713 | -5/Warlord | Destroyed by H-66 Slayer with Heavy Assault Rifle Last Messages --------------- 16699_ Penetrated by Slug. 16702_ Imp. Medium Armor Plating destroyed. 16704_ Penetrated by Slug. 16705_ Slug penetrates Wall. 16706_ S-27 Virus destroyed. 16707_ Penetrated by Slug. 16708_ Acquired 39 matter. 16708_ Penetrated by Slug. 16709_ Hvy. Treads destroyed. 16709_ Penetrated by Slug. 16709_ Vortex Chain Reactor destroyed. 16709_ Imp. Signal Interpreter destroyed. 16710_ Penetrated by Slug. 16712_ Released Hcp. Storage Unit. 16712_ Released Lrg. Storage Unit. 16712_ Released Imp. Coolant Injector. 16712_ Released Rnf. Deuterium Engine. 16712_ Released Centrium Heavy Treads. 16713_ S-27 Virus destroyed. 16713_ Penetrated by Slug. Map ----- +----------------------------------------------------+ | ?????????????????????????????????????????????????? | | ?????????????????????????????????????????????????? | | #####????????????????????????????????????????????? | | """"#????????????????????????????????????????????? | | """"#????????????????????????????????????????????? | | ""#????????????????????????????????????????????? | | ""#????????????????????????????????????????????? | | "##########???????????????????????????????????? | | ""][ ##??????????????????????????????????? | | ""#|[#########?????????????????????????????????? | | "#" #????## #????????????????????????????????? | | ### #######"###??????????????????????????????? | | #??###[[^%% ##?????????????????????# ?????#? | | ## #????# =" "#?????????????????????# ??### | | ##++#????# # ##?????????????????????? ?? | | % #????#// # #???????????????????????? ### | | ! #????###### #????????????????????????? | | #?????????# #??????"???????????????????# | | #####?????????# #??????""#?????????????????# | | ??????????????# ###???#""#??????????????????# | | ?????????#????# # #???#""#???????????????????# | | ?????????# ## ######""#####????????????????# | | ##????????# # =]"" "############??????# | | #????????# g%h !!["" """ " """"#??????? | | ####+##### g*%![b%""! " %%"#?####?# | | + = =%ibl!@g% gg=x ### ### | | # [ !%g hh]%!]gg%e! ! e!!/=^+ | | + %[ h%%%!%*g% % /%%!gg%g%+ | | # """ % %![ =!=%= !#### | | # """ % % % %*[*""#??## | | # """ # # "" "" %"""#???# | | # # # "" " # # #%####???# # | | ## #### #######""###### ##??????????# # | | ?# #??#%% #?????#""#??????#??????????? # | | ?###########??# #?????#""#????????????????? ## | | ??????????????# #??????""?????????????????? ##? | | ??????????????# #?????????????????????????? ??? | | ??????????????# ! #????????????????????????? ??? | | ??????????????# #????????????????????????? #??? | | ??????????????+ #????????????????????????? ???? | | #####?????????# #?????????????????????????? ???? | | ! =#?????????+ #??????????????????????????????? | | =#??????????# #???????????????????????????????? | | =#????????????????????????????????????????????? | | [=#????????????????????????????????????????????? | | ] =#????????????????????????????????????????????? | | #####????????????????????????????????????????????? | | """"#????????????????????????????????????????????? | | "#????????????????????????????????????????????? | | "#????????????????????????????????????????????? | +----------------------------------------------------+ Best States ------------- Heat Dissipation 68 Coolant Potential 80 Energy Generation 55 Energy Capacity 1700 Matter Stores 329 Matter Capacity 550 Sight Range 16 Robot Scan Range 20 Terrain Scan Density 10 EM Shielding 2 Armor Coverage 2400 Resistance: KI 40 Resistance: TH 15 Resistance: EM 90 Weapon Cycling 20 Evasion (%) 40 Targeting Accuracy 8 Recoil Reduction 2 Offensive Hacking 10 Defensive Hacking 10 Item Schematics ----------------- None Robot Schematics ------------------ None Fabricated ------------ Nothing Alien Tech Used ----------------- None Achievements -------------- Generalissimo No Signal Prison Break Project G-00 Revising The Future Turtlemind Challenges ------------ None Game ------ Seed CoilDynamicBlaster Manual? 0 Play Time 02:59:18 Cumulative 172.8 hours Start 2019.10.26 @ 02:50:09 End 2019.10.26 @ 21:54:09 Sessions 3 Manual Loads 0 Difficulty Rogue Special Mode None Game No. 181 Rogue 181 Adventurer 0 Explorer 0 Win Type - Total 3 Types 3/0/0/0/0/0/0 Lore% 55 Gallery% 69 Achievement% 45 Wizard Run 0 Options --------- ASCII 0 Keyboard 1 Movement Numpad Keybinds 0 Fullscreen 1 Font 18/SmallcapsGlow Map View 76x50 Tactical HUD 1 Map Filters NONE Filters NONE Steam X RUN: 3ba6253e-f312-4854-87ac-4a2b8c0bc63f